[Event "13 Open de Quenza"]
[Site "Quenza, France"]
[Date "2024.07.07"]
[Round "2.12"]
[White "Yankelevich, Lev"]
[Black "Junger, Quentin"]
[Result "1-0"]
[TimeControl "5min+3s/move"]
[WhiteElo "2416"]
[BlackElo "1878"]

1. d4 {[%clk 00:05:03]} Nf6 {[%clk 00:05:03]} {[%emt 00:00:01]} 2. Nf3 {[%clk
00:05:03]} {[%emt 00:00:01]} g6 {[%clk 00:05:03]} {[%emt 00:00:01]} 3. Nc3
{[%clk 00:04:46]} {[%emt 00:00:21]} d5 {[%clk 00:05:03]} {[%emt 00:00:03]} 4.
Bf4 {[%clk 00:04:46]} {[%emt 00:00:01]} c6 {[%clk 00:04:46]} {[%emt 00:00:21]}
5. h3 {[%clk 00:04:46]} {[%emt 00:00:01]} Bg7 {[%clk 00:04:44]} {[%emt
00:00:05]} 6. e3 {[%clk 00:04:46]} {[%emt 00:00:02]} O-O {[%clk 00:04:42]}
{[%emt 00:00:06]} 7. Bd3 {[%clk 00:04:46]} {[%emt 00:00:02]} Nbd7 {[%clk
00:04:28]} {[%emt 00:00:18]} 8. O-O {[%clk 00:04:46]} {[%emt 00:00:02]} Nh5
{[%clk 00:04:25]} {[%emt 00:00:06]} 9. Bh2 {[%clk 00:04:46]} {[%emt 00:00:02]}
Re8 {[%clk 00:04:15]} {[%emt 00:00:13]} 10. e4 {[%clk 00:04:46]} dxe4 {[%clk
00:04:10]} {[%emt 00:00:07]} 11. Nxe4 {[%clk 00:04:46]} {[%emt 00:00:02]} Nhf6
{[%clk 00:03:59]} {[%emt 00:00:14]} 12. Nc3 {[%clk 00:04:24]} {[%emt 00:00:26]}
Qb6 {[%clk 00:03:56]} {[%emt 00:00:06]} 13. a3 {[%clk 00:04:24]} {[%emt
00:00:01]} Nf8 {[%clk 00:03:41]} {[%emt 00:00:18]} 14. Ne5 {[%clk 00:04:20]}
{[%emt 00:00:06]} Ne6 {[%clk 00:03:37]} {[%emt 00:00:08]} 15. Ne2 {[%clk
00:04:07]} {[%emt 00:00:16]} Rd8 {[%clk 00:03:35]} {[%emt 00:00:05]} 16. c3
{[%clk 00:03:57]} {[%emt 00:00:12]} c5 {[%clk 00:03:33]} {[%emt 00:00:04]} 17.
b4 {[%clk 00:03:30]} {[%emt 00:00:31]} cxd4 {[%clk 00:03:33]} {[%emt 00:00:03]}
18. c4 {[%clk 00:03:30]} a5 {[%clk 00:03:29]} {[%emt 00:00:08]} 19. c5 {[%clk
00:03:30]} {[%emt 00:00:01]} Qa7 {[%clk 00:03:25]} {[%emt 00:00:06]} 20. Rb1
{[%clk 00:03:28]} {[%emt 00:00:05]} Bd7 {[%clk 00:03:17]} {[%emt 00:00:12]} 21.
Nc4 {[%clk 00:03:28]} {[%emt 00:00:02]} axb4 {[%clk 00:03:16]} {[%emt
00:00:04]} 22. axb4 {[%clk 00:03:28]} {[%emt 00:00:02]} Bb5 {[%clk 00:03:13]}
{[%emt 00:00:06]} 23. Nb6 {[%clk 00:03:28]} {[%emt 00:00:03]} Bxd3 {[%clk
00:03:10]} {[%emt 00:00:06]} 24. Qxd3 {[%clk 00:03:28]} {[%emt 00:00:01]} Qa3
{[%clk 00:02:55]} {[%emt 00:00:18]} 25. Rb3 {[%clk 00:03:14]} {[%emt 00:00:17]}
Qa6 {[%clk 00:02:54]} {[%emt 00:00:04]} 26. Nxa8 {[%clk 00:03:12]} {[%emt
00:00:05]} Qxd3 {[%clk 00:02:54]} {[%emt 00:00:02]} 27. Rxd3 {[%clk 00:03:12]}
Rxa8 {[%clk 00:02:54]} {[%emt 00:00:03]} 28. Nxd4 {[%clk 00:03:11]} {[%emt
00:00:04]} Nxd4 {[%clk 00:02:54]} {[%emt 00:00:02]} 29. Rxd4 {[%clk 00:03:11]}
{[%emt 00:00:02]} Ra2 {[%clk 00:02:45]} {[%emt 00:00:13]} 30. Rd8+ {[%clk
00:03:05]} {[%emt 00:00:09]} 1-0

[Event "13 Open de Quenza"]
[Site "Quenza, France"]
[Date "2024.07.07"]
[Round "3.1"]
[White "Anand, Viswanathan"]
[Black "Unuk, Laura"]
[Result "1-0"]
[TimeControl "5min+3s/move"]
[WhiteElo "2751"]
[BlackElo "2324"]

1. e4 {[%clk 00:05:03]} e5 {[%clk 00:05:03]} {[%emt 00:00:02]} 2. Nf3 {[%clk
00:05:03]} {[%emt 00:00:01]} Nc6 {[%clk 00:05:03]} {[%emt 00:00:02]} 3. Bc4
{[%clk 00:05:03]} {[%emt 00:00:02]} Nf6 {[%clk 00:05:02]} {[%emt 00:00:04]} 4.
d3 {[%clk 00:05:03]} {[%emt 00:00:02]} d5 {[%clk 00:04:49]} {[%emt 00:00:16]} 5.
exd5 {[%clk 00:05:03]} {[%emt 00:00:02]} Nxd5 {[%clk 00:04:49]} {[%emt
00:00:01]} 6. O-O {[%clk 00:05:03]} {[%emt 00:00:03]} Nb6 {[%clk 00:04:49]}
{[%emt 00:00:02]} 7. Bb5 {[%clk 00:05:03]} {[%emt 00:00:03]} Bd6 {[%clk
00:04:49]} {[%emt 00:00:02]} 8. Bxc6+ {[%clk 00:05:00]} {[%emt 00:00:06]} bxc6
{[%clk 00:04:49]} {[%emt 00:00:02]} 9. Re1 {[%clk 00:04:54]} {[%emt 00:00:10]}
f6 {[%clk 00:04:22]} {[%emt 00:00:30]} 10. d4 {[%clk 00:04:54]} {[%emt
00:00:02]} O-O {[%clk 00:04:20]} {[%emt 00:00:05]} 11. dxe5 {[%clk 00:04:52]}
{[%emt 00:00:04]} Bxe5 {[%clk 00:04:17]} {[%emt 00:00:06]} 12. Qxd8 {[%clk
00:04:47]} {[%emt 00:00:08]} Rxd8 {[%clk 00:04:17]} {[%emt 00:00:01]} 13. Nxe5
{[%clk 00:04:47]} {[%emt 00:00:02]} fxe5 {[%clk 00:04:17]} {[%emt 00:00:03]} 14.
Nd2 {[%clk 00:04:41]} {[%emt 00:00:09]} Bf5 {[%clk 00:03:31]} {[%emt 00:00:49]}
15. c3 {[%clk 00:04:09]} {[%emt 00:00:35]} e4 {[%clk 00:03:25]} {[%emt
00:00:10]} 16. Nb3 {[%clk 00:04:08]} {[%emt 00:00:04]} Bg6 {[%clk 00:03:05]}
{[%emt 00:00:22]} 17. Na5 {[%clk 00:04:00]} {[%emt 00:00:12]} c5 {[%clk
00:02:18]} {[%emt 00:00:50]} 18. c4 {[%clk 00:04:00]} {[%emt 00:00:02]} Rd4
{[%clk 00:01:54]} {[%emt 00:00:27]} 19. b3 {[%clk 00:04:00]} {[%emt 00:00:03]}
Nc8 {[%clk 00:01:50]} {[%emt 00:00:07]} 20. Nb7 {[%clk 00:03:40]} {[%emt
00:00:22]} Rd7 {[%clk 00:00:34]} {[%emt 00:01:19]} 21. Nxc5 {[%clk 00:03:40]}
{[%emt 00:00:03]} Re7 {[%clk 00:00:34]} {[%emt 00:00:01]} 22. Na6 {[%clk
00:03:27]} {[%emt 00:00:16]} Nd6 {[%clk 00:00:33]} {[%emt 00:00:04]} 23. Bg5
{[%clk 00:03:27]} Rf7 {[%clk 00:00:33]} {[%emt 00:00:03]} 24. Rad1 {[%clk
00:03:26]} {[%emt 00:00:04]} h6 {[%clk 00:00:32]} {[%emt 00:00:05]} 25. Nxc7
{[%clk 00:03:19]} {[%emt 00:00:10]} Rxc7 {[%clk 00:00:23]} {[%emt 00:00:11]} 26.
Rxd6 {[%clk 00:03:19]} {[%emt 00:00:01]} Bf5 {[%clk 00:00:18]} {[%emt
00:00:08]} 27. Be3 {[%clk 00:03:19]} {[%emt 00:00:03]} a6 {[%clk 00:00:16]}
{[%emt 00:00:06]} 28. h3 {[%clk 00:03:19]} {[%emt 00:00:02]} Rd7 {[%clk
00:00:10]} {[%emt 00:00:09]} 29. Red1 {[%clk 00:03:19]} Rad8 {[%clk 00:00:10]}
{[%emt 00:00:03]} 30. Rxd7 {[%clk 00:03:18]} {[%emt 00:00:04]} Rxd7 {[%clk
00:00:10]} {[%emt 00:00:01]} 31. Rc1 {[%clk 00:03:18]} {[%emt 00:00:03]} Kf7
{[%clk 00:00:10]} {[%emt 00:00:04]} 32. b4 {[%clk 00:03:18]} {[%emt 00:00:01]}
Be6 {[%clk 00:00:10]} {[%emt 00:00:02]} 33. a4 {[%clk 00:03:18]} {[%emt
00:00:02]} Rc7 {[%clk 00:00:08]} {[%emt 00:00:05]} 34. c5 {[%clk 00:03:15]}
{[%emt 00:00:05]} Bd7 {[%clk 00:00:08]} {[%emt 00:00:01]} 35. Rc4 {[%clk
00:02:58]} {[%emt 00:00:20]} Bxa4 {[%clk 00:00:08]} {[%emt 00:00:04]} 36. Rxe4
{[%clk 00:02:58]} Bb5 {[%clk 00:00:07]} {[%emt 00:00:04]} 37. Bf4 {[%clk
00:02:57]} {[%emt 00:00:03]} Rd7 {[%clk 00:00:07]} {[%emt 00:00:03]} 38. Bd6
{[%clk 00:02:57]} g6 {[%clk 00:00:07]} {[%emt 00:00:03]} 39. g4 {[%clk
00:02:57]} h5 {[%clk 00:00:07]} {[%emt 00:00:03]} 40. Kh2 {[%clk 00:02:57]}
{[%emt 00:00:01]} hxg4 {[%emt 00:00:02]} 41. hxg4 {[%clk 00:02:57]} Ra7 {[%clk
00:00:07]} {[%emt 00:00:01]} 42. Kg3 {[%clk 00:02:57]} {[%emt 00:00:03]} Bc6
{[%clk 00:00:07]} {[%emt 00:00:02]} 43. Rf4+ {[%clk 00:02:57]} {[%emt
00:00:02]} Ke6 {[%clk 00:00:07]} {[%emt 00:00:02]} 44. Kh4 {[%clk 00:02:57]} a5
{[%clk 00:00:07]} {[%emt 00:00:04]} 45. bxa5 {[%clk 00:02:57]} {[%emt
00:00:02]} Rxa5 {[%clk 00:00:07]} {[%emt 00:00:01]} 46. Kg5 {[%clk 00:02:57]}
{[%emt 00:00:01]} Be8 {[%clk 00:00:05]} {[%emt 00:00:06]} 47. Re4+ {[%clk
00:02:57]} {[%emt 00:00:02]} Kd7 {[%clk 00:00:05]} {[%emt 00:00:01]} 48. Re7+
{[%clk 00:02:57]} Kd8 {[%clk 00:00:05]} {[%emt 00:00:01]} 49. f4 {[%clk
00:02:57]} Ra2 {[%clk 00:00:05]} {[%emt 00:00:03]} 50. Rb7 {[%clk 00:02:57]}
{[%emt 00:00:03]} Bd7 {[%clk 00:00:05]} {[%emt 00:00:03]} 51. Rb8+ {[%clk
00:02:56]} {[%emt 00:00:03]} Bc8 {[%clk 00:00:05]} {[%emt 00:00:01]} 52. c6
{[%clk 00:02:56]} {[%emt 00:00:01]} Rc2 {[%clk 00:00:05]} {[%emt 00:00:01]} 53.
c7+ {[%clk 00:02:56]} {[%emt 00:00:02]} Kd7 {[%clk 00:00:05]} 54. Be5 {[%clk
00:02:56]} Rc6 {[%clk 00:00:05]} {[%emt 00:00:02]} 55. Kh6 {[%clk 00:02:56]}
{[%emt 00:00:03]} Re6 {[%clk 00:00:05]} {[%emt 00:00:02]} 56. g5 {[%clk
00:02:56]} {[%emt 00:00:03]} Ra6 {[%clk 00:00:05]} {[%emt 00:00:02]} 57. Kg7
{[%clk 00:02:56]} {[%emt 00:00:02]} Re6 {[%clk 00:00:05]} {[%emt 00:00:03]} 58.
Ra8 {[%clk 00:02:55]} {[%emt 00:00:04]} Rc6 {[%clk 00:00:05]} {[%emt 00:00:01]}
59. Kf7 {[%clk 00:02:55]} Rb6 {[%clk 00:00:05]} {[%emt 00:00:02]} 60. Ra1
{[%clk 00:02:55]} {[%emt 00:00:03]} Rc6 {[%clk 00:00:04]} {[%emt 00:00:04]} 61.
Rd1+ {[%clk 00:02:55]} {[%emt 00:00:01]} 1-0

[Event "13 Open de Quenza"]
[Site "Quenza, France"]
[Date "2024.07.07"]
[Round "3.2"]
[White "Rosol, Philip"]
[Black "Fressinet, Laurent"]
[Result "0-1"]
[TimeControl "5min+3s/move"]
[WhiteElo "2150"]
[BlackElo "2625"]

1. d4 {[%clk 00:05:03]} Nf6 {[%clk 00:05:03]} {[%emt 00:00:02]} 2. c4 {[%clk
00:05:03]} {[%emt 00:00:01]} e6 {[%clk 00:05:03]} {[%emt 00:00:02]} 3. Nf3
{[%clk 00:05:03]} {[%emt 00:00:02]} d5 {[%clk 00:05:03]} {[%emt 00:00:01]} 4.
g3 {[%clk 00:05:03]} {[%emt 00:00:03]} Be7 {[%clk 00:05:02]} {[%emt 00:00:05]}
5. Bg2 {[%clk 00:05:02]} {[%emt 00:00:04]} O-O {[%clk 00:05:02]} {[%emt
00:00:02]} 6. O-O {[%clk 00:05:02]} {[%emt 00:00:02]} c6 {[%clk 00:05:02]} 7.
Qc2 {[%clk 00:04:46]} {[%emt 00:00:20]} b6 {[%clk 00:05:02]} {[%emt 00:00:02]}
8. b3 {[%clk 00:04:37]} {[%emt 00:00:12]} Bb7 {[%clk 00:05:01]} {[%emt
00:00:04]} 9. Bb2 {[%clk 00:04:37]} {[%emt 00:00:01]} Nbd7 {[%clk 00:05:01]}
{[%emt 00:00:02]} 10. Nbd2 {[%clk 00:04:36]} {[%emt 00:00:05]} Rc8 {[%clk
00:04:51]} {[%emt 00:00:13]} 11. e4 {[%clk 00:04:31]} {[%emt 00:00:07]} c5
{[%clk 00:04:51]} {[%emt 00:00:02]} 12. e5 {[%clk 00:04:12]} {[%emt 00:00:22]}
Ne8 {[%clk 00:04:50]} {[%emt 00:00:03]} 13. h4 {[%clk 00:02:41]} {[%emt
00:01:35]} h6 {[%clk 00:04:34]} {[%emt 00:00:19]} 14. Rfd1 {[%clk 00:01:28]}
{[%emt 00:01:16]} Nc7 {[%clk 00:04:24]} {[%emt 00:00:13]} 15. Rac1 {[%clk
00:01:20]} {[%emt 00:00:12]} a5 {[%clk 00:03:34]} {[%emt 00:00:53]} 16. Qd3
{[%clk 00:01:06]} {[%emt 00:00:16]} cxd4 {[%clk 00:03:24]} {[%emt 00:00:13]} 17.
Qxd4 {[%clk 00:01:04]} {[%emt 00:00:05]} Nc5 {[%clk 00:03:20]} {[%emt
00:00:06]} 18. cxd5 {[%clk 00:00:59]} {[%emt 00:00:09]} exd5 {[%clk 00:02:49]}
{[%emt 00:00:34]} 19. Qg4 {[%clk 00:00:55]} {[%emt 00:00:07]} Nd3 {[%clk
00:02:38]} {[%emt 00:00:14]} 20. Rc2 {[%clk 00:00:52]} {[%emt 00:00:07]} Ne6
{[%clk 00:02:29]} {[%emt 00:00:12]} 21. Rxc8 {[%clk 00:00:42]} {[%emt
00:00:13]} Qxc8 {[%clk 00:01:56]} {[%emt 00:00:36]} 22. Ba1 {[%clk 00:00:42]}
{[%emt 00:00:01]} Bc5 {[%clk 00:01:48]} {[%emt 00:00:11]} 23. Rf1 {[%clk
00:00:36]} {[%emt 00:00:09]} Ba6 {[%clk 00:01:39]} {[%emt 00:00:12]} 24. Bh3
{[%clk 00:00:23]} {[%emt 00:00:16]} Qd7 {[%clk 00:01:18]} {[%emt 00:00:24]} 25.
Nd4 {[%clk 00:00:20]} {[%emt 00:00:06]} Nxe5 {[%clk 00:01:13]} {[%emt
00:00:09]} 26. Qf5 {[%clk 00:00:17]} {[%emt 00:00:06]} Nxd4 {[%clk 00:00:58]}
{[%emt 00:00:17]} 27. Qxd7 Nxd7 {[%clk 00:00:58]} 28. Bxd7 {[%clk 00:00:16]}
{[%emt 00:00:03]} Bxf1 {[%clk 00:00:58]} {[%emt 00:00:02]} 29. Nxf1 {[%clk
00:00:16]} {[%emt 00:00:02]} Rd8 {[%clk 00:00:53]} {[%emt 00:00:08]} 30. Bg4
{[%clk 00:00:16]} {[%emt 00:00:02]} Ne6 {[%clk 00:00:51]} {[%emt 00:00:05]} 31.
Kg2 {[%clk 00:00:15]} {[%emt 00:00:05]} Bd4 {[%clk 00:00:49]} {[%emt 00:00:04]}
32. Bxd4 {[%clk 00:00:15]} {[%emt 00:00:04]} Nxd4 {[%clk 00:00:49]} 33. Ne3
{[%clk 00:00:15]} {[%emt 00:00:01]} Nb5 {[%clk 00:00:49]} {[%emt 00:00:03]} 34.
Bf3 {[%clk 00:00:11]} {[%emt 00:00:07]} Nc3 {[%clk 00:00:49]} {[%emt 00:00:02]}
35. a4 {[%clk 00:00:10]} {[%emt 00:00:03]} d4 {[%clk 00:00:49]} {[%emt
00:00:04]} 36. Nc4 {[%clk 00:00:08]} {[%emt 00:00:05]} d3 {[%clk 00:00:49]}
{[%emt 00:00:01]} 37. Nd2 {[%clk 00:00:06]} {[%emt 00:00:05]} Re8 {[%clk
00:00:46]} {[%emt 00:00:06]} 38. Bg4 {[%clk 00:00:06]} {[%emt 00:00:03]} Ne4
{[%clk 00:00:41]} {[%emt 00:00:07]} 0-1

[Event "13 Open de Quenza"]
[Site "Quenza, France"]
[Date "2024.07.07"]
[Round "3.3"]
[White "Bellahcene, Bilel"]
[Black "Kuru, Atilla"]
[Result "1-0"]
[TimeControl "5min+3s/move"]
[WhiteElo "2535"]
[BlackElo "2372"]

1. e4 {[%clk 00:05:03]} {[%emt 00:12:59]} c5 {[%clk 00:05:03]} {[%emt
00:00:01]} 2. Nf3 {[%clk 00:05:03]} {[%emt 00:00:02]} e6 {[%clk 00:05:03]} 3.
d4 {[%clk 00:05:03]} cxd4 {[%clk 00:05:03]} 4. Nxd4 {[%clk 00:05:03]} Nc6
{[%clk 00:05:03]} {[%emt 00:00:01]} 5. Nc3 {[%clk 00:05:03]} {[%emt 00:00:01]}
Qc7 {[%clk 00:05:03]} {[%emt 00:00:01]} 6. Be3 {[%clk 00:05:03]} {[%emt
00:00:01]} a6 7. a3 b5 {[%clk 00:04:45]} {[%emt 00:00:21]} 8. Nxc6 {[%clk
00:05:03]} {[%emt 00:00:01]} Qxc6 {[%clk 00:04:45]} {[%emt 00:00:03]} 9. Qd4
{[%clk 00:04:53]} {[%emt 00:00:13]} Bb7 {[%clk 00:04:39]} {[%emt 00:00:09]} 10.
O-O-O {[%clk 00:04:53]} {[%emt 00:00:02]} Nf6 {[%clk 00:04:11]} {[%emt
00:00:31]} 11. f3 {[%clk 00:03:15]} {[%emt 00:01:41]} Rc8 {[%clk 00:04:00]}
{[%emt 00:00:14]} 12. g4 {[%clk 00:03:15]} {[%emt 00:00:01]} h6 {[%clk
00:03:09]} {[%emt 00:00:54]} 13. h4 {[%clk 00:03:03]} {[%emt 00:00:16]} Bxa3
{[%clk 00:03:09]} {[%emt 00:00:02]} 14. bxa3 {[%clk 00:02:42]} {[%emt
00:00:24]} Qxc3 {[%clk 00:03:09]} {[%emt 00:00:01]} 15. Qxc3 {[%clk 00:02:39]}
{[%emt 00:00:07]} Rxc3 {[%clk 00:03:09]} {[%emt 00:00:01]} 16. Bd3 {[%clk
00:02:36]} {[%emt 00:00:06]} d5 {[%clk 00:03:06]} {[%emt 00:00:06]} 17. Bd4
{[%clk 00:02:17]} {[%emt 00:00:22]} Rxa3 {[%clk 00:02:57]} {[%emt 00:00:12]} 18.
g5 {[%clk 00:02:05]} {[%emt 00:00:15]} hxg5 {[%clk 00:02:19]} {[%emt 00:00:41]}
19. hxg5 {[%clk 00:02:05]} {[%emt 00:00:01]} Rxh1 {[%clk 00:02:19]} {[%emt
00:00:04]} 20. Rxh1 {[%clk 00:02:05]} Nd7 {[%clk 00:02:17]} {[%emt 00:00:04]}
21. Bxg7 {[%clk 00:01:30]} {[%emt 00:00:37]} dxe4 {[%clk 00:02:17]} 22. fxe4
{[%clk 00:01:30]} Ra4 {[%clk 00:02:17]} {[%emt 00:00:03]} 23. Rh8+ {[%clk
00:01:27]} {[%emt 00:00:06]} Ke7 {[%clk 00:02:17]} {[%emt 00:00:01]} 24. e5
{[%clk 00:01:27]} {[%emt 00:00:01]} Ra1+ {[%clk 00:01:38]} {[%emt 00:00:41]} 25.
Kb2 {[%clk 00:01:27]} Rg1 {[%clk 00:01:07]} {[%emt 00:00:35]} 26. Bf6+ {[%clk
00:01:24]} {[%emt 00:00:06]} Nxf6 {[%clk 00:01:07]} {[%emt 00:00:01]} 27. exf6+
{[%clk 00:01:14]} {[%emt 00:00:12]} Kd6 {[%clk 00:01:07]} {[%emt 00:00:02]} 28.
g6 {[%clk 00:01:14]} fxg6 {[%clk 00:01:05]} {[%emt 00:00:06]} 29. f7 {[%clk
00:01:14]} 1-0

[Event "13 Open de Quenza"]
[Site "Quenza, France"]
[Date "2024.07.07"]
[Round "3.4"]
[White "Pieri, Pierre-Louis"]
[Black "Lagarde, Maxime"]
[Result "0-1"]
[TimeControl "5min+3s/move"]
[WhiteElo "2190"]
[BlackElo "2608"]

1. e4 {[%clk 00:05:03]} {[%emt 00:07:24]} c5 {[%clk 00:05:03]} {[%emt
00:00:01]} 2. Nc3 {[%clk 00:05:03]} {[%emt 00:00:02]} g6 {[%clk 00:05:03]}
{[%emt 00:00:02]} 3. d4 {[%clk 00:05:03]} cxd4 {[%clk 00:05:00]} {[%emt
00:00:08]} 4. Qxd4 {[%clk 00:05:03]} {[%emt 00:00:01]} Nf6 {[%clk 00:05:00]}
{[%emt 00:00:01]} 5. Be3 {[%clk 00:05:03]} Nc6 {[%clk 00:04:59]} {[%emt
00:00:04]} 6. Qd2 {[%clk 00:05:03]} {[%emt 00:00:01]} d6 {[%clk 00:04:53]}
{[%emt 00:00:09]} 7. f3 {[%clk 00:05:03]} {[%emt 00:00:03]} Bg7 {[%clk
00:04:51]} {[%emt 00:00:06]} 8. Nge2 {[%clk 00:04:59]} {[%emt 00:00:06]} a6
{[%clk 00:04:37]} {[%emt 00:00:17]} 9. O-O-O {[%clk 00:04:47]} {[%emt
00:00:15]} b5 {[%clk 00:04:37]} {[%emt 00:00:02]} 10. Bh6 {[%clk 00:04:38]}
{[%emt 00:00:11]} Bxh6 {[%clk 00:04:36]} {[%emt 00:00:05]} 11. Qxh6 {[%clk
00:04:38]} {[%emt 00:00:01]} Qa5 {[%clk 00:04:35]} {[%emt 00:00:05]} 12. Kb1
{[%clk 00:04:03]} {[%emt 00:00:39]} Be6 {[%clk 00:04:35]} {[%emt 00:00:01]} 13.
Nf4 {[%clk 00:03:25]} {[%emt 00:00:41]} Ne5 {[%clk 00:04:35]} {[%emt 00:00:01]}
14. Ncd5 {[%clk 00:02:52]} {[%emt 00:00:36]} Bxd5 {[%clk 00:04:34]} {[%emt
00:00:04]} 15. Nxd5 {[%clk 00:02:52]} {[%emt 00:00:03]} Nxd5 {[%clk 00:04:34]}
{[%emt 00:00:03]} 16. Rxd5 {[%clk 00:02:31]} {[%emt 00:00:24]} Qe1+ {[%clk
00:04:32]} {[%emt 00:00:05]} 17. Qc1 {[%clk 00:02:31]} {[%emt 00:00:01]} Qxc1+
{[%clk 00:04:32]} {[%emt 00:00:02]} 18. Kxc1 {[%clk 00:02:31]} Kd7 {[%clk
00:04:15]} {[%emt 00:00:21]} 19. a4 {[%clk 00:02:23]} {[%emt 00:00:11]} e6
{[%clk 00:04:05]} {[%emt 00:00:12]} 20. Rd4 {[%clk 00:02:10]} {[%emt 00:00:16]}
Nc6 {[%clk 00:04:02]} {[%emt 00:00:06]} 21. Rd2 {[%clk 00:01:40]} {[%emt
00:00:33]} bxa4 {[%clk 00:04:00]} {[%emt 00:00:05]} 22. Be2 {[%clk 00:01:37]}
{[%emt 00:00:06]} Ke7 {[%clk 00:03:04]} {[%emt 00:00:59]} 23. Rhd1 {[%clk
00:01:37]} {[%emt 00:00:02]} Rhd8 {[%clk 00:03:04]} {[%emt 00:00:01]} 24. Kb1
{[%clk 00:01:34]} {[%emt 00:00:06]} g5 {[%clk 00:02:44]} {[%emt 00:00:22]} 25.
Ka2 {[%clk 00:01:31]} {[%emt 00:00:06]} Rab8 {[%clk 00:02:35]} {[%emt
00:00:12]} 26. Ka3 {[%clk 00:01:07]} {[%emt 00:00:27]} Rb6 {[%clk 00:02:35]} 27.
Bc4 {[%clk 00:00:50]} {[%emt 00:00:20]} Ne5 {[%clk 00:02:31]} {[%emt 00:00:07]}
28. Ba2 {[%clk 00:00:50]} {[%emt 00:00:02]} Nd7 {[%clk 00:02:20]} {[%emt
00:00:14]} 29. Rd4 {[%clk 00:00:48]} {[%emt 00:00:05]} Nc5 {[%clk 00:02:20]}
{[%emt 00:00:03]} 30. e5 {[%clk 00:00:15]} {[%emt 00:00:36]} d5 {[%clk
00:02:18]} {[%emt 00:00:05]} 31. R1d2 {[%clk 00:00:15]} {[%emt 00:00:03]} Rdb8
{[%clk 00:02:07]} {[%emt 00:00:13]} 32. c3 {[%clk 00:00:15]} Nb3 {[%clk
00:01:39]} {[%emt 00:00:31]} 33. Bxb3 {[%clk 00:00:15]} {[%emt 00:00:01]} Rxb3+
{[%clk 00:01:39]} {[%emt 00:00:01]} 34. Kxa4 {[%clk 00:00:09]} {[%emt
00:00:09]} Rxb2 {[%clk 00:01:39]} {[%emt 00:00:01]} 35. Ka3 {[%clk 00:00:05]}
{[%emt 00:00:07]} R8b3+ {[%clk 00:01:38]} {[%emt 00:00:04]} 36. Ka4 {[%clk
00:00:05]} Rxd2 {[%clk 00:01:38]} {[%emt 00:00:02]} 37. Rxd2 {[%clk 00:00:05]}
Rxc3 {[%clk 00:01:38]} {[%emt 00:00:02]} 38. Ka5 {[%clk 00:00:05]} {[%emt
00:00:02]} Re3 {[%clk 00:01:35]} {[%emt 00:00:05]} 39. Kxa6 {[%clk 00:00:05]}
{[%emt 00:00:02]} Rxe5 {[%clk 00:01:35]} {[%emt 00:00:01]} 40. Kb5 {[%clk
00:00:05]} Re3 {[%clk 00:01:31]} {[%emt 00:00:07]} 41. Kc5 {[%clk 00:00:05]}
{[%emt 00:00:02]} h5 {[%clk 00:01:29]} {[%emt 00:00:05]} 42. Kd4 {[%clk
00:00:05]} {[%emt 00:00:02]} Ra3 {[%clk 00:01:29]} {[%emt 00:00:01]} 43. Rd1
{[%clk 00:00:04]} {[%emt 00:00:04]} Ra2 {[%clk 00:01:29]} {[%emt 00:00:02]} 44.
Rg1 {[%clk 00:00:04]} {[%emt 00:00:01]} Kf6 {[%clk 00:01:27]} {[%emt 00:00:05]}
45. Ke3 {[%clk 00:00:04]} {[%emt 00:00:01]} Ke5 {[%clk 00:01:26]} {[%emt
00:00:04]} 46. Kd3 {[%clk 00:00:04]} f5 {[%clk 00:01:25]} {[%emt 00:00:03]} 47.
Ke3 {[%clk 00:00:04]} {[%emt 00:00:02]} h4 {[%clk 00:01:24]} {[%emt 00:00:03]}
48. Kd4+ {[%emt 00:00:10]} 0-1

[Event "13 Open de Quenza"]
[Site "Quenza, France"]
[Date "2024.07.07"]
[Round "3.5"]
[White "Fedorchuk, Sergey A."]
[Black "Roux, Baptiste"]
[Result "1-0"]
[TimeControl "5min+3s/move"]
[WhiteElo "2554"]
[BlackElo "2352"]

1. e4 {[%clk 00:05:03]} {[%emt 00:00:02]} c5 {[%clk 00:05:03]} {[%emt
00:00:02]} 2. Nf3 {[%clk 00:05:03]} {[%emt 00:00:01]} e6 {[%clk 00:05:03]} 3.
d4 {[%clk 00:05:03]} {[%emt 00:00:03]} cxd4 {[%clk 00:05:03]} {[%emt 00:00:01]}
4. Nxd4 {[%clk 00:05:03]} {[%emt 00:00:02]} Nf6 {[%clk 00:05:03]} 5. Nd2 {[%clk
00:05:03]} {[%emt 00:00:02]} Nc6 {[%clk 00:05:03]} {[%emt 00:00:01]} 6. Nxc6
{[%clk 00:05:03]} {[%emt 00:00:01]} bxc6 {[%clk 00:05:03]} {[%emt 00:00:01]} 7.
e5 {[%clk 00:05:03]} {[%emt 00:00:01]} Nd5 {[%clk 00:05:02]} {[%emt 00:00:04]}
8. a3 {[%clk 00:05:01]} {[%emt 00:00:06]} Bb7 {[%clk 00:04:48]} {[%emt
00:00:17]} 9. c4 {[%clk 00:04:45]} {[%emt 00:00:19]} Ne7 {[%clk 00:04:09]}
{[%emt 00:00:42]} 10. Bd3 {[%clk 00:03:40]} {[%emt 00:01:08]} Ng6 {[%clk
00:04:06]} {[%emt 00:00:06]} 11. Nf3 {[%clk 00:03:40]} {[%emt 00:00:01]} c5
{[%clk 00:04:01]} {[%emt 00:00:09]} 12. Qe2 {[%clk 00:03:22]} {[%emt 00:00:22]}
Be7 {[%clk 00:03:47]} {[%emt 00:00:16]} 13. Bd2 {[%clk 00:03:03]} {[%emt
00:00:22]} d6 {[%clk 00:03:15]} {[%emt 00:00:35]} 14. exd6 {[%clk 00:02:46]}
{[%emt 00:00:20]} Qxd6 {[%clk 00:03:15]} {[%emt 00:00:03]} 15. Be4 {[%clk
00:02:26]} {[%emt 00:00:23]} Bxe4 {[%clk 00:03:00]} {[%emt 00:00:18]} 16. Qxe4
{[%clk 00:02:26]} {[%emt 00:00:01]} O-O {[%clk 00:03:00]} {[%emt 00:00:02]} 17.
O-O {[%clk 00:02:22]} {[%emt 00:00:07]} Bf6 {[%clk 00:03:00]} {[%emt 00:00:01]}
18. Rab1 {[%clk 00:02:20]} {[%emt 00:00:06]} Rab8 {[%clk 00:03:00]} 19. b4
{[%clk 00:02:18]} {[%emt 00:00:05]} Ne5 {[%clk 00:02:49]} {[%emt 00:00:13]} 20.
Rfd1 {[%clk 00:01:33]} {[%emt 00:00:49]} Nxf3+ {[%clk 00:02:43]} {[%emt
00:00:10]} 21. gxf3 {[%clk 00:01:27]} {[%emt 00:00:09]} Bd4 {[%clk 00:02:36]}
{[%emt 00:00:09]} 22. Be3 {[%clk 00:01:19]} {[%emt 00:00:11]} f5 {[%clk
00:02:26]} {[%emt 00:00:13]} 23. bxc5 {[%clk 00:01:10]} {[%emt 00:00:12]} fxe4
{[%clk 00:02:22]} {[%emt 00:00:07]} 24. cxd6 {[%clk 00:01:10]} {[%emt
00:00:01]} Bxe3 {[%clk 00:01:53]} {[%emt 00:00:32]} 25. Rxb8 {[%clk 00:01:01]}
{[%emt 00:00:12]} Rxb8 {[%clk 00:01:42]} {[%emt 00:00:14]} 26. fxe3 {[%clk
00:01:00]} {[%emt 00:00:04]} Kf7 {[%clk 00:01:27]} {[%emt 00:00:18]} 27. c5
{[%clk 00:01:00]} {[%emt 00:00:02]} Ke8 {[%clk 00:01:25]} {[%emt 00:00:05]} 28.
c6 {[%clk 00:01:00]} Rb6 {[%clk 00:01:24]} {[%emt 00:00:04]} 29. d7+ {[%clk
00:01:00]} {[%emt 00:00:03]} Kd8 {[%clk 00:01:24]} 30. c7+ {[%clk 00:01:00]}
1-0